[Event "Early-Titled-Tuesday-Blitz-September-26-2023"]
[Site "Chess.com"]
[Date "2023.09.26"]
[Round "9"]
[White "Lennis93"]
[Black "Flawless_Fighter"]
[Result "1-0"]
[WhiteElo "2738"]
[BlackElo "2826"]
[TimeControl "180+1"]
[EndTime "9:45:47 PDT"]
[Termination "Lennis93 won on time"]

1. b3 {[%clk 0:03:00.9]} 1... Nf6 {[%clk 0:02:59.4]} 2. Bb2 {[%clk 0:03:01.5]}
2... e6 {[%clk 0:02:59.5]} 3. g3 {[%clk 0:03:00.3]} 3... d5 {[%clk 0:02:59.7]}
4. Bg2 {[%clk 0:03:00.8]} 4... Be7 {[%clk 0:03:00.2]} 5. Nf3 {[%clk 0:03:01.2]}
5... O-O {[%clk 0:03:00.7]} 6. O-O {[%clk 0:03:01.8]} 6... b6 {[%clk 0:03:01.2]}
7. d3 {[%clk 0:03:02.4]} 7... Bb7 {[%clk 0:03:01.6]} 8. Nbd2 {[%clk 0:03:03.1]}
8... c5 {[%clk 0:03:01.8]} 9. e3 {[%clk 0:03:03.3]} 9... Nc6 {[%clk 0:03:01.3]}
10. a3 {[%clk 0:03:03.2]} 10... Qc7 {[%clk 0:03:00.5]} 11. e4 {[%clk 0:03:01.3]}
11... d4 {[%clk 0:02:55.6]} 12. h3 {[%clk 0:02:58.8]} 12... b5 {[%clk
0:02:50.1]} 13. Nh2 {[%clk 0:02:52.6]} 13... Nd7 {[%clk 0:02:33.1]} 14. f4
{[%clk 0:02:52.3]} 14... Rae8 {[%clk 0:02:30.8]} 15. h4 {[%clk 0:02:51.3]} 15...
f5 {[%clk 0:02:22.8]} 16. exf5 {[%clk 0:02:39.4]} 16... exf5 {[%clk 0:02:20.9]}
17. Nhf3 {[%clk 0:02:29.3]} 17... h6 {[%clk 0:02:11.9]} 18. c3 {[%clk
0:02:23.6]} 18... Bf6 {[%clk 0:02:05.8]} 19. cxd4 {[%clk 0:02:23]} 19... cxd4
{[%clk 0:01:54.6]} 20. b4 {[%clk 0:02:21.6]} 20... Kh8 {[%clk 0:01:45.4]} 21.
Rc1 {[%clk 0:02:19]} 21... Qd6 {[%clk 0:01:45.2]} 22. Ng5 {[%clk 0:02:04.9]}
22... Nd8 {[%clk 0:01:18.3]} 23. Ndf3 {[%clk 0:02:01.6]} 23... Nb6 {[%clk
0:01:00.4]} 24. Ba1 {[%clk 0:01:44]} 24... g6 {[%clk 0:00:54.2]} 25. Rc5 {[%clk
0:01:43.6]} 25... hxg5 {[%clk 0:00:53.5]} 26. hxg5 {[%clk 0:01:43.4]} 26... Bg7
{[%clk 0:00:54.1]} 27. Rxb5 {[%clk 0:01:40.5]} 27... Ne6 {[%clk 0:00:48.5]} 28.
Ra5 {[%clk 0:01:32.9]} 28... a6 {[%clk 0:00:45.6]} 29. Nh4 {[%clk 0:01:21.3]}
29... Bxg2 {[%clk 0:00:27.9]} 30. Nxg6+ {[%clk 0:01:21.4]} 30... Kg8 {[%clk
0:00:28.6]} 31. Kxg2 {[%clk 0:01:21.9]} 31... Qc6+ {[%clk 0:00:27.6]} 32. Qf3
{[%clk 0:01:18]} 32... Qxf3+ {[%clk 0:00:25.7]} 33. Kxf3 {[%clk 0:01:15.8]}
33... Rf7 {[%clk 0:00:24.5]} 34. Rxa6 {[%clk 0:01:15.9]} 34... Nd5 {[%clk
0:00:22.1]} 35. Re1 {[%clk 0:01:16.1]} 35... Ndc7 {[%clk 0:00:18.5]} 36. Rc6
{[%clk 0:01:12.9]} 36... Rd7 {[%clk 0:00:18.5]} 37. b5 {[%clk 0:01:11.2]} 37...
Kf7 {[%clk 0:00:18.6]} 38. b6 {[%clk 0:01:09.3]} 38... Nd5 {[%clk 0:00:12.1]}
39. Ne5+ {[%clk 0:01:09]} 39... Bxe5 {[%clk 0:00:12]} 40. Rxe5 {[%clk
0:01:09.9]} 40... Nc3 {[%clk 0:00:08.9]} 41. Rxf5+ {[%clk 0:01:07.6]} 41... Kg7
{[%clk 0:00:05.5]} 42. Re5 {[%clk 0:01:06.7]} 42... Rde7 {[%clk 0:00:05.4]} 43.
Bxc3 {[%clk 0:01:05.8]} 43... dxc3 {[%clk 0:00:05.5]} 44. Rxc3 {[%clk
0:01:03.8]} 44... Nd4+ {[%clk 0:00:05.9]} 45. Ke4 {[%clk 0:01:03.3]} 45... Nb5
{[%clk 0:00:04.4]} 46. Rc5 {[%clk 0:00:57.1]} 46... Nd6+ {[%clk 0:00:04.3]} 47.
Kf3 {[%clk 0:00:55.1]} 47... Rxe5 {[%clk 0:00:04.2]} 48. fxe5 {[%clk 0:00:52.4]}
48... Nf5 {[%clk 0:00:02.7]} 49. a4 {[%clk 0:00:45]} 49... Kg6 {[%clk
0:00:01.9]} 50. a5 {[%clk 0:00:44.9]} 50... Nd4+ {[%clk 0:00:01.9]} 51. Ke4
{[%clk 0:00:43.7]} 51... Ne6 {[%clk 0:00:02.3]} 52. Rc6 {[%clk 0:00:39.3]} 52...
Kxg5 {[%clk 0:00:02.6]} 53. Rxe6 {[%clk 0:00:39.6]} 53... Rxe6 {[%clk
0:00:02.9]} 54. b7 {[%clk 0:00:40.1]} 1-0

[Event "Early-Titled-Tuesday-Blitz-September-26-2023"]
[Site "Chess.com"]
[Date "2023.09.26"]
[Round "9"]
[White "Francisco_Ferrari"]
[Black "Mikhail_Golubev"]
[Result "0-1"]
[WhiteElo "2398"]
[BlackElo "2579"]
[TimeControl "180+1"]
[EndTime "9:45:48 PDT"]
[Termination "Mikhail_Golubev won by resignation"]

1. e4 {[%clk 0:03:00.9]} 1... c5 {[%clk 0:02:59.6]} 2. Nf3 {[%clk 0:02:59.9]}
2... d6 {[%clk 0:02:59.9]} 3. d4 {[%clk 0:02:56.5]} 3... Nf6 {[%clk 0:02:59.8]}
4. Nc3 {[%clk 0:02:54.4]} 4... cxd4 {[%clk 0:03:00.4]} 5. Nxd4 {[%clk
0:02:54.8]} 5... Nc6 {[%clk 0:03:00.8]} 6. Bc4 {[%clk 0:02:53]} 6... e6 {[%clk
0:02:58.7]} 7. O-O {[%clk 0:02:50.3]} 7... a6 {[%clk 0:02:54.4]} 8. Bb3 {[%clk
0:02:48]} 8... Qc7 {[%clk 0:02:53.4]} 9. Nxc6 {[%clk 0:02:35.8]} 9... Qxc6
{[%clk 0:02:50.8]} 10. Qe2 {[%clk 0:02:20.8]} 10... b5 {[%clk 0:02:18.6]} 11. a4
{[%clk 0:01:56.1]} 11... Bb7 {[%clk 0:02:03.8]} 12. axb5 {[%clk 0:01:49.5]}
12... axb5 {[%clk 0:02:04.7]} 13. Rxa8+ {[%clk 0:01:48.6]} 13... Bxa8 {[%clk
0:02:04.7]} 14. Bd5 {[%clk 0:01:39.6]} 14... Nxd5 {[%clk 0:01:57.8]} 15. exd5
{[%clk 0:01:40.5]} 15... Qc4 {[%clk 0:01:57.8]} 16. Qh5 {[%clk 0:01:19.8]} 16...
Bxd5 {[%clk 0:01:16.6]} 17. Nxd5 {[%clk 0:01:14.6]} 17... Qxd5 {[%clk 0:01:16]}
18. Qxd5 {[%clk 0:01:14.6]} 18... exd5 {[%clk 0:01:16.9]} 19. Rd1 {[%clk
0:01:12.4]} 19... Kd7 {[%clk 0:01:17.4]} 20. Rxd5 {[%clk 0:01:12.4]} 20... Kc6
{[%clk 0:01:18]} 21. Rd1 {[%clk 0:01:12.3]} 21... Be7 {[%clk 0:01:15.4]} 22. Kf1
{[%clk 0:01:05.9]} 22... Ra8 {[%clk 0:01:05.7]} 23. Be3 {[%clk 0:01:03.6]} 23...
Bf6 {[%clk 0:00:58.2]} 24. b3 {[%clk 0:00:39.9]} 24... Ra2 {[%clk 0:00:55.1]}
25. Rc1 {[%clk 0:00:22.7]} 25... Bb2 {[%clk 0:00:51.7]} 26. Rd1 {[%clk
0:00:21.8]} 26... Ba3 {[%clk 0:00:51.3]} 27. Bd4 {[%clk 0:00:16]} 27... g6
{[%clk 0:00:41.1]} 28. Rd2 {[%clk 0:00:16.4]} 28... Bb4 {[%clk 0:00:36.5]} 29.
Re2 {[%clk 0:00:13.1]} 29... Kd5 {[%clk 0:00:32]} 30. c3 {[%clk 0:00:11.5]}
30... Ra1+ {[%clk 0:00:23.7]} 31. Re1 {[%clk 0:00:11.6]} 31... Rxe1+ {[%clk
0:00:23.4]} 32. Kxe1 {[%clk 0:00:12.5]} 32... Bc5 {[%clk 0:00:22.5]} 33. Bf6
{[%clk 0:00:10.9]} 33... Ke4 {[%clk 0:00:18.4]} 34. Ke2 {[%clk 0:00:11.3]} 34...
d5 {[%clk 0:00:17.1]} 35. f3+ {[%clk 0:00:11.3]} 35... Kf5 {[%clk 0:00:17.3]}
36. Bd4 {[%clk 0:00:11.3]} 36... Bxd4 {[%clk 0:00:15.8]} 37. cxd4 {[%clk
0:00:12.2]} 37... b4 {[%clk 0:00:14.6]} 38. Ke3 {[%clk 0:00:12]} 38... h5 {[%clk
0:00:13.9]} 39. h4 {[%clk 0:00:12.3]} 39... f6 {[%clk 0:00:13.1]} 40. g3 {[%clk
0:00:12.5]} 40... g5 {[%clk 0:00:13]} 41. hxg5 {[%clk 0:00:11.8]} 41... fxg5
{[%clk 0:00:12.8]} 42. f4 {[%clk 0:00:12.2]} 42... gxf4+ {[%clk 0:00:10.8]} 43.
gxf4 {[%clk 0:00:13.1]} 43... h4 {[%clk 0:00:11.1]} 44. Kf3 {[%clk 0:00:13.6]}
44... h3 {[%clk 0:00:11.5]} 45. Kg3 {[%clk 0:00:13]} 45... h2 {[%clk 0:00:11.7]}
46. Kxh2 {[%clk 0:00:13]} 46... Kxf4 {[%clk 0:00:12.1]} 47. Kg2 {[%clk
0:00:13.6]} 47... Ke4 {[%clk 0:00:12.7]} 48. Kf2 {[%clk 0:00:13.8]} 48... Kxd4
{[%clk 0:00:13.3]} 49. Ke2 {[%clk 0:00:14.4]} 49... Kc3 {[%clk 0:00:13.8]} 0-1

[Event "Early-Titled-Tuesday-Blitz-September-26-2023"]
[Site "Chess.com"]
[Date "2023.09.26"]
[Round "9"]
[White "Bauman_Guy"]
[Black "carokannlover213"]
[Result "0-1"]
[WhiteElo "2874"]
[BlackElo "2725"]
[TimeControl "180+1"]
[EndTime "9:45:51 PDT"]
[Termination "carokannlover213 won by resignation"]

1. e4 {[%clk 0:02:59.7]} 1... e6 {[%clk 0:03:00.6]} 2. d4 {[%clk 0:02:58.8]}
2... d5 {[%clk 0:03:01.1]} 3. Nc3 {[%clk 0:02:59.7]} 3... Nf6 {[%clk 0:03:01.5]}
4. Bg5 {[%clk 0:02:59.3]} 4... dxe4 {[%clk 0:02:58.7]} 5. Nxe4 {[%clk
0:02:58.3]} 5... Nbd7 {[%clk 0:02:58.8]} 6. Nf3 {[%clk 0:02:57.9]} 6... Be7
{[%clk 0:02:58]} 7. Nxf6+ {[%clk 0:02:56.5]} 7... Nxf6 {[%clk 0:02:56.4]} 8. Bd3
{[%clk 0:02:52.6]} 8... c5 {[%clk 0:02:52]} 9. O-O {[%clk 0:02:50.2]} 9... cxd4
{[%clk 0:02:48.2]} 10. Nxd4 {[%clk 0:02:49.5]} 10... O-O {[%clk 0:02:48.9]} 11.
c3 {[%clk 0:02:47]} 11... Bd7 {[%clk 0:02:45]} 12. Qf3 {[%clk 0:02:45.1]} 12...
Qb6 {[%clk 0:02:22.4]} 13. Rab1 {[%clk 0:02:34.7]} 13... h6 {[%clk 0:02:16.3]}
14. Bh4 {[%clk 0:02:31.6]} 14... Nd5 {[%clk 0:02:08.1]} 15. Bxe7 {[%clk
0:02:22.7]} 15... Nxe7 {[%clk 0:02:09]} 16. Qe4 {[%clk 0:02:23.3]} 16... Ng6
{[%clk 0:01:45.6]} 17. Qe3 {[%clk 0:02:23]} 17... e5 {[%clk 0:01:38.8]} 18. Nc2
{[%clk 0:02:14.7]} 18... Nf4 {[%clk 0:01:25]} 19. Bc4 {[%clk 0:02:09.9]} 19...
Bf5 {[%clk 0:01:17.6]} 20. Rbc1 {[%clk 0:01:45.9]} 20... Qc6 {[%clk 0:01:17.5]}
21. f3 {[%clk 0:01:14.9]} 21... Qxc4 {[%clk 0:01:13.6]} 22. Qxe5 {[%clk
0:01:15]} 22... Ne2+ {[%clk 0:01:08.1]} 23. Kf2 {[%clk 0:01:14.5]} 23... Nxc1
{[%clk 0:00:51.6]} 24. Qxf5 {[%clk 0:01:14.2]} 24... Qd3 {[%clk 0:00:47.9]} 25.
Nd4 {[%clk 0:01:10.1]} 25... Qxf5 {[%clk 0:00:44.4]} 26. Nxf5 {[%clk 0:01:11]}
26... Nd3+ {[%clk 0:00:45]} 27. Kg3 {[%clk 0:01:11.3]} 27... Nxb2 {[%clk
0:00:45.9]} 28. Rb1 {[%clk 0:01:11.7]} 28... Na4 {[%clk 0:00:42.1]} 29. Rxb7
{[%clk 0:01:11.9]} 29... Nxc3 {[%clk 0:00:42.1]} 30. a3 {[%clk 0:01:12.3]} 30...
Nd5 {[%clk 0:00:41.5]} 31. h4 {[%clk 0:01:10.6]} 31... Nf6 {[%clk 0:00:41.2]}
32. Kh3 {[%clk 0:01:09.9]} 32... Rfb8 {[%clk 0:00:41.2]} 33. Rc7 {[%clk
0:01:10.1]} 33... Rb3 {[%clk 0:00:38.5]} 34. a4 {[%clk 0:01:09.1]} 34... a5
{[%clk 0:00:37.7]} 35. Ne7+ {[%clk 0:01:03.8]} 35... Kf8 {[%clk 0:00:37.2]} 36.
Nf5 {[%clk 0:01:04.7]} 36... Kg8 {[%clk 0:00:30.6]} 37. Ne7+ {[%clk 0:01:04.3]}
37... Kh7 {[%clk 0:00:31.2]} 38. Nf5 {[%clk 0:01:04.5]} 38... Rb4 {[%clk
0:00:31.7]} 39. g4 {[%clk 0:00:55.4]} 39... Rxa4 {[%clk 0:00:30.9]} 40. Rxf7
{[%clk 0:00:55.1]} 40... Ne8 {[%clk 0:00:31.2]} 41. h5 {[%clk 0:00:50.6]} 41...
Rb4 {[%clk 0:00:31.3]} 42. Rf8 {[%clk 0:00:48.8]} 42... Rbb8 {[%clk 0:00:29]}
43. Nh4 {[%clk 0:00:43.1]} 43... Nf6 {[%clk 0:00:27.2]} 44. Rf7 {[%clk
0:00:42.2]} 44... a4 {[%clk 0:00:27.6]} 45. Nf5 {[%clk 0:00:42.5]} 45... Rg8
{[%clk 0:00:24.1]} 46. f4 {[%clk 0:00:36.6]} 46... a3 {[%clk 0:00:23.3]} 47. g5
{[%clk 0:00:36.6]} 47... hxg5 {[%clk 0:00:22.8]} 48. fxg5 {[%clk 0:00:36.7]}
48... Nxh5 {[%clk 0:00:23.3]} 49. Kg4 {[%clk 0:00:37.2]} 49... a2 {[%clk
0:00:20.6]} 50. Ne7 {[%clk 0:00:33.1]} 50... a1=Q {[%clk 0:00:19]} 51. g6+
{[%clk 0:00:34]} 51... Kh8 {[%clk 0:00:18.8]} 52. Kxh5 {[%clk 0:00:34.9]} 52...
Ra5+ {[%clk 0:00:17.9]} 53. Kg4 {[%clk 0:00:34.3]} 53... Qa4+ {[%clk 0:00:17.5]}
54. Rf4 {[%clk 0:00:33.7]} 54... Qd7+ {[%clk 0:00:15.1]} 55. Nf5 {[%clk
0:00:34.1]} 55... Rxf5 {[%clk 0:00:14.9]} 56. Rxf5 {[%clk 0:00:33.9]} 56... Rf8
{[%clk 0:00:14.7]} 0-1

[Event "Early-Titled-Tuesday-Blitz-September-26-2023"]
[Site "Chess.com"]
[Date "2023.09.26"]
[Round "9"]
[White "jaskol95"]
[Black "vovachesss"]
[Result "1-0"]
[WhiteElo "2623"]
[BlackElo "2725"]
[TimeControl "180+1"]
[EndTime "9:45:51 PDT"]
[Termination "jaskol95 won by resignation"]

1. e4 {[%clk 0:03:00.9]} 1... c6 {[%clk 0:02:56.9]} 2. d4 {[%clk 0:02:58.8]}
2... d5 {[%clk 0:02:57.2]} 3. e5 {[%clk 0:02:59.5]} 3... Bf5 {[%clk 0:02:57.3]}
4. Nd2 {[%clk 0:02:58.9]} 4... e6 {[%clk 0:02:56.9]} 5. Nb3 {[%clk 0:02:58.9]}
5... a6 {[%clk 0:02:55.5]} 6. Nf3 {[%clk 0:02:58.2]} 6... c5 {[%clk 0:02:55.6]}
7. dxc5 {[%clk 0:02:55.8]} 7... Bxc5 {[%clk 0:02:55.5]} 8. Nxc5 {[%clk
0:02:56.2]} 8... Qa5+ {[%clk 0:02:55.5]} 9. c3 {[%clk 0:02:56.8]} 9... Qxc5
{[%clk 0:02:56]} 10. Be3 {[%clk 0:02:49.6]} 10... Qc7 {[%clk 0:02:56]} 11. Be2
{[%clk 0:02:12.4]} 11... Nc6 {[%clk 0:02:55.9]} 12. Bf4 {[%clk 0:02:01.3]} 12...
Nge7 {[%clk 0:02:55.7]} 13. Bg3 {[%clk 0:02:01.8]} 13... O-O {[%clk 0:02:55.2]}
14. O-O {[%clk 0:02:01]} 14... Be4 {[%clk 0:02:46]} 15. Re1 {[%clk 0:01:51.8]}
15... Nf5 {[%clk 0:02:44]} 16. Qd2 {[%clk 0:01:38.3]} 16... Nxg3 {[%clk
0:02:37.3]} 17. hxg3 {[%clk 0:01:38.8]} 17... Bxf3 {[%clk 0:02:38.2]} 18. Bxf3
{[%clk 0:01:34]} 18... Nxe5 {[%clk 0:02:38.3]} 19. Bd1 {[%clk 0:01:29.1]} 19...
Nc4 {[%clk 0:02:36.7]} 20. Qc2 {[%clk 0:01:27.8]} 20... Rac8 {[%clk 0:02:36.2]}
21. Be2 {[%clk 0:01:20]} 21... Rfd8 {[%clk 0:02:33.8]} 22. Rad1 {[%clk
0:01:16.8]} 22... g6 {[%clk 0:02:30.9]} 23. Rd4 {[%clk 0:01:11]} 23... b5 {[%clk
0:02:27]} 24. Rh4 {[%clk 0:01:09.1]} 24... Nd6 {[%clk 0:02:26.2]} 25. g4 {[%clk
0:01:03.5]} 25... Qe7 {[%clk 0:02:24.8]} 26. Rh3 {[%clk 0:01:00.1]} 26... Qf6
{[%clk 0:02:05.5]} 27. a4 {[%clk 0:00:55]} 27... Rc6 {[%clk 0:01:57.1]} 28. axb5
{[%clk 0:00:55]} 28... axb5 {[%clk 0:01:58]} 29. Qd2 {[%clk 0:00:49.7]} 29...
Nc4 {[%clk 0:01:46.9]} 30. Bxc4 {[%clk 0:00:48.7]} 30... dxc4 {[%clk 0:01:40.7]}
31. Qh6 {[%clk 0:00:46.4]} 31... Qg7 {[%clk 0:01:40.9]} 32. Qg5 {[%clk
0:00:36.3]} 32... Rd5 {[%clk 0:01:39.6]} 33. Qe7 {[%clk 0:00:36.7]} 33... Rc8
{[%clk 0:01:39.9]} 34. Ra1 {[%clk 0:00:34.6]} 34... Rcd8 {[%clk 0:01:36.8]} 35.
Kh2 {[%clk 0:00:33.2]} 35... Qe5+ {[%clk 0:01:35.5]} 36. g3 {[%clk 0:00:31.4]}
36... Rd2 {[%clk 0:01:32]} 37. Kg1 {[%clk 0:00:18.4]} 37... Rd1+ {[%clk
0:01:22.4]} 38. Kh2 {[%clk 0:00:18.7]} 38... Qe1 {[%clk 0:00:58.8]} 39. Qxd8+
{[%clk 0:00:14.3]} 39... Rxd8 {[%clk 0:00:19.8]} 40. Rxe1 {[%clk 0:00:14]} 40...
Rd2 {[%clk 0:00:20.7]} 41. Kg2 {[%clk 0:00:13.4]} 41... Rxb2 {[%clk 0:00:21.2]}
42. Reh1 {[%clk 0:00:12.6]} 42... Rc2 {[%clk 0:00:18.9]} 43. Rxh7 {[%clk
0:00:12.6]} 43... Rxc3 {[%clk 0:00:18.9]} 44. Rh8+ {[%clk 0:00:13.2]} 44... Kg7
{[%clk 0:00:18.3]} 45. g5 {[%clk 0:00:13.9]} 1-0

[Event "Early-Titled-Tuesday-Blitz-September-26-2023"]
[Site "Chess.com"]
[Date "2023.09.26"]
[Round "9"]
[White "zozik"]
[Black "ChainedDowntohell"]
[Result "0-1"]
[WhiteElo "2322"]
[BlackElo "2457"]
[TimeControl "180+1"]
[EndTime "9:45:54 PDT"]
[Termination "ChainedDowntohell won on time"]

1. d4 {[%clk 0:02:55.2]} 1... Nf6 {[%clk 0:02:59.2]} 2. Nf3 {[%clk 0:02:55.4]}
2... d5 {[%clk 0:02:58.5]} 3. g3 {[%clk 0:02:55.8]} 3... c6 {[%clk 0:02:56.9]}
4. Bg2 {[%clk 0:02:56.4]} 4... Bf5 {[%clk 0:02:56.6]} 5. O-O {[%clk 0:02:57.1]}
5... e6 {[%clk 0:02:56.7]} 6. c4 {[%clk 0:02:57.6]} 6... Be7 {[%clk 0:02:54.8]}
7. Nc3 {[%clk 0:02:58.1]} 7... h6 {[%clk 0:02:52.9]} 8. Nd2 {[%clk 0:02:58.7]}
8... Bh7 {[%clk 0:02:50.9]} 9. e4 {[%clk 0:02:58.9]} 9... dxe4 {[%clk
0:02:49.4]} 10. Ndxe4 {[%clk 0:02:59.8]} 10... O-O {[%clk 0:02:47.6]} 11. Bf4
{[%clk 0:02:55.7]} 11... a5 {[%clk 0:02:44.7]} 12. Qd2 {[%clk 0:02:53.8]} 12...
Nxe4 {[%clk 0:02:15.8]} 13. Nxe4 {[%clk 0:02:52.3]} 13... Qb6 {[%clk 0:02:09.1]}
14. Rad1 {[%clk 0:02:32.5]} 14... Rd8 {[%clk 0:02:00.6]} 15. Rfe1 {[%clk
0:02:12.2]} 15... Na6 {[%clk 0:01:36.2]} 16. a3 {[%clk 0:02:04.9]} 16... Rd7
{[%clk 0:01:30.1]} 17. Qe2 {[%clk 0:00:57.4]} 17... Rad8 {[%clk 0:01:19.7]} 18.
c5 {[%clk 0:00:56.3]} 18... Qb3 {[%clk 0:01:14.2]} 19. Nd6 {[%clk 0:00:51.4]}
19... Nc7 {[%clk 0:01:05.4]} 20. Bd2 {[%clk 0:00:38]} 20... Bxd6 {[%clk
0:00:56.1]} 21. cxd6 {[%clk 0:00:37.3]} 21... Rxd6 {[%clk 0:00:29.9]} 22. Bxa5
{[%clk 0:00:37.8]} 22... b6 {[%clk 0:00:27.9]} 23. Bc3 {[%clk 0:00:38.3]} 23...
Nb5 {[%clk 0:00:23.3]} 24. Qe5 {[%clk 0:00:16]} 24... Nxc3 {[%clk 0:00:19.7]}
25. bxc3 {[%clk 0:00:14.4]} 25... Qxc3 {[%clk 0:00:19.5]} 26. Rc1 {[%clk
0:00:10.7]} 26... Qxa3 {[%clk 0:00:17]} 27. Rxc6 {[%clk 0:00:08.9]} 27... Rxc6
{[%clk 0:00:16.1]} 28. Bxc6 {[%clk 0:00:09.8]} 28... Qc3 {[%clk 0:00:14.6]} 29.
d5 {[%clk 0:00:06.9]} 29... Qxe5 {[%clk 0:00:03.4]} 30. Rxe5 {[%clk 0:00:07.8]}
30... exd5 {[%clk 0:00:02.5]} 31. Bxd5 {[%clk 0:00:08.7]} 31... Kf8 {[%clk
0:00:02.4]} 32. f4 {[%clk 0:00:06.6]} 32... Rd6 {[%clk 0:00:02.8]} 33. Kf2
{[%clk 0:00:05.9]} 33... Bg6 {[%clk 0:00:02.8]} 34. Ke3 {[%clk 0:00:05.4]} 34...
f6 {[%clk 0:00:03.3]} 35. Re6 {[%clk 0:00:01.9]} 35... Rxd5 {[%clk 0:00:03.7]}
36. Rxb6 {[%clk 0:00:02]} 36... Rd3+ {[%clk 0:00:04.3]} 37. Ke2 {[%clk
0:00:01.6]} 37... Rd7 {[%clk 0:00:05.2]} 38. Rb8+ {[%clk 0:00:01.7]} 38... Be8
{[%clk 0:00:05.2]} 39. Rb6 {[%clk 0:00:02.6]} 39... Re7+ {[%clk 0:00:06]} 40.
Kf3 {[%clk 0:00:02.7]} 40... Kf7 {[%clk 0:00:06.9]} 41. Kf2 {[%clk 0:00:03.3]}
41... Bd7 {[%clk 0:00:07.2]} 42. g4 {[%clk 0:00:03.9]} 42... Bxg4 {[%clk
0:00:07.5]} 43. Kg3 {[%clk 0:00:03.4]} 43... Bf5 {[%clk 0:00:07.9]} 0-1

[Event "Early-Titled-Tuesday-Blitz-September-26-2023"]
[Site "Chess.com"]
[Date "2023.09.26"]
[Round "9"]
[White "DanielNaroditsky"]
[Black "Denis_Makhnyov"]
[Result "1-0"]
[WhiteElo "3154"]
[BlackElo "2928"]
[TimeControl "180+1"]
[EndTime "9:45:57 PDT"]
[Termination "DanielNaroditsky won on time"]

1. e4 {[%clk 0:02:55.6]} 1... e5 {[%clk 0:02:59.8]} 2. Nf3 {[%clk 0:02:55.4]}
2... Nc6 {[%clk 0:03:00.4]} 3. Nc3 {[%clk 0:02:55.8]} 3... Nf6 {[%clk
0:03:00.4]} 4. g3 {[%clk 0:02:56.5]} 4... Bb4 {[%clk 0:02:56.3]} 5. Bg2 {[%clk
0:02:56.2]} 5... Bxc3 {[%clk 0:02:55.9]} 6. dxc3 {[%clk 0:02:55]} 6... O-O
{[%clk 0:02:54.8]} 7. O-O {[%clk 0:02:50.4]} 7... h6 {[%clk 0:02:54.5]} 8. Qe2
{[%clk 0:02:40.6]} 8... d6 {[%clk 0:02:49.1]} 9. Rd1 {[%clk 0:02:27.5]} 9... a6
{[%clk 0:02:41.6]} 10. c4 {[%clk 0:02:26.7]} 10... Qe7 {[%clk 0:02:37.9]} 11. h3
{[%clk 0:02:24.1]} 11... Rb8 {[%clk 0:02:30.4]} 12. a4 {[%clk 0:02:23.9]} 12...
a5 {[%clk 0:02:30.6]} 13. b3 {[%clk 0:02:23.6]} 13... b6 {[%clk 0:02:30.5]} 14.
Bb2 {[%clk 0:02:18.7]} 14... Nh7 {[%clk 0:02:14]} 15. Nh2 {[%clk 0:02:07.6]}
15... Nb4 {[%clk 0:02:01.4]} 16. Nf1 {[%clk 0:01:57.8]} 16... f5 {[%clk
0:01:59.8]} 17. exf5 {[%clk 0:01:58.7]} 17... Bxf5 {[%clk 0:01:59.9]} 18. Ne3
{[%clk 0:01:58.9]} 18... Bg6 {[%clk 0:01:56.9]} 19. Bc3 {[%clk 0:01:51.5]} 19...
Nf6 {[%clk 0:01:21]} 20. Bxb4 {[%clk 0:01:34.8]} 20... axb4 {[%clk 0:01:21.9]}
21. a5 {[%clk 0:01:35.7]} 21... bxa5 {[%clk 0:01:22]} 22. Rxa5 {[%clk
0:01:36.6]} 22... Kh7 {[%clk 0:01:15.7]} 23. Ra7 {[%clk 0:01:29.3]} 23... e4
{[%clk 0:00:53.1]} 24. Rda1 {[%clk 0:01:03.5]} 24... Rf7 {[%clk 0:00:28.1]} 25.
R7a5 {[%clk 0:00:48.8]} 25... Rbf8 {[%clk 0:00:26.4]} 26. Nf5 {[%clk 0:00:46]}
26... Qd7 {[%clk 0:00:26]} 27. Nh4 {[%clk 0:00:45.6]} 27... e3 {[%clk
0:00:20.5]} 28. Nxg6 {[%clk 0:00:31.7]} 28... exf2+ {[%clk 0:00:20.6]} 29. Kf1
{[%clk 0:00:15.1]} 29... Re8 {[%clk 0:00:16.7]} 30. Qd3 {[%clk 0:00:15.4]} 30...
Kg8 {[%clk 0:00:17]} 31. Nf4 {[%clk 0:00:13.3]} 31... g5 {[%clk 0:00:08.7]} 32.
Qg6+ {[%clk 0:00:09.2]} 32... Rg7 {[%clk 0:00:04.3]} 33. Qxf6 {[%clk 0:00:08.6]}
33... gxf4 {[%clk 0:00:05.2]} 34. Qxf4 {[%clk 0:00:04.8]} 34... Kh7 {[%clk
0:00:02.1]} 35. Be4+ {[%clk 0:00:03.9]} 35... Kg8 {[%clk 0:00:02.4]} 36. Bd5+
{[%clk 0:00:04.1]} 36... Kh7 {[%clk 0:00:02.7]} 37. Be4+ {[%clk 0:00:04.8]}
37... Kg8 {[%clk 0:00:02.9]} 38. Rf5 {[%clk 0:00:05]} 38... Qe7 {[%clk 0:00:02]}
39. Bd5+ {[%clk 0:00:04.1]} 39... Kh7 {[%clk 0:00:02.7]} 40. Qxf2 {[%clk
0:00:04.4]} 40... Qd7 {[%clk 0:00:01.6]} 41. Kg2 {[%clk 0:00:03.4]} 41... c6
{[%clk 0:00:02.1]} 42. Bf7 {[%clk 0:00:02.3]} 42... Rf8 {[%clk 0:00:01.3]} 43.
Bg6+ {[%clk 0:00:02.4]} 43... Kxg6 {[%clk 0:00:01.8]} 44. Rxf8 {[%clk
0:00:03.3]} 1-0